bitfinex/quotes_ETHUSD_20250625
["timestamp","ask_amount","ask_price","bid_price","bid_amount"]
[1750861947214,11.0734,2406.1,2405.7,4.15669119]
[1750861947426,12.67946043,2406.1,2405.7,4.15669119]
[1750861947939,16.83560508,2406.1,2405.6,4.15686527]
[1750861948170,12.67946043,2406.1,2405.7,4.15670543]
[1750861948728,12.67946043,2406.1,2405.3,4.70746097]
[1750861948975,12.67946043,2406.1,2405.7,4.15667889]
[1750861950126,0.83119128,2406.2,2405.3,0.55]
[1750861950479,2.408,2406.5,2406.1,0.55]
[1750861950674,6.26996462,2408.2,2406.4,0.7572]
[1750861950675,7.834,2406.9,2406.4,0.7572]
[1750861950847,7.834,2407.0,2406.8,4.1548671]
[1750861951042,7.834,2407.0,2406.7,0.2072]
[1750861951043,7.834,2407.0,2406.7,4.36219412]
[1750861951262,8.95779,2407.0,2406.7,0.2072]
[1750861951565,13.11242266,2407.0,2406.5,4.15539409]
[1750861951736,0.2072,2406.8,2406.3,0.2072]
[1750861951938,0.764,2406.7,2406.3,0.2072]
[1750861952142,7.831,2406.6,2406.4,4.1555851]
[1750861952331,7.831,2406.7,2406.6,4.15514106]
[1750861952531,2.6152,2406.8,2406.2,4.15591865]
[1750861952532,0.2072,2406.8,2406.7,4.1550671]
[1750861952729,7.83,2406.8,2406.7,4.1550671]
[1750861953032,7.83,2406.8,2406.6,4.15517356]
[1750861953235,7.83,2406.8,2406.7,4.1550671]
[1750861953456,7.83,2406.8,2406.6,4.15516217]
[1750861954061,7.83,2406.8,2406.5,0.2072]
[1750861954362,7.83,2406.8,2406.6,4.15523975]
[1750861955150,7.83,2406.8,2406.5,0.2072]
[1750861955341,7.83,2406.8,2406.6,4.15512012]
[1750861955574,7.83,2406.8,2406.6,4.15523975]
[1750861956667,7.83,2406.8,2406.5,4.36252968]
[1750861956868,7.83,2406.8,2406.5,0.2072]
[1750861957160,7.83,2406.8,2406.6,4.1551245]
[1750861958086,7.83,2406.8,2406.5,4.15529656]
[1750861958274,7.83,2406.8,2406.6,4.15522826]
[1750861958574,7.83,2406.8,2406.6,4.15522276]
[1750861958976,3.172,2407.0,2406.1,0.55]
[1750861958977,0.764,2407.0,2406.1,4.70603757]
[1750861959132,17.819,2406.9,2406.8,4.15474105]
[1750861959344,17.819,2406.9,2406.5,4.15535518]
[1750861959549,17.819,2406.9,2406.8,4.15489446]
[1750861959780,17.819,2406.9,2406.4,4.97005348]
[1750861959781,2.407,2407.1,2406.9,4.15472184]
[1750861959945,2.407,2407.1,2407.0,4.15454923]
[1750861960147,10.806,2407.6,2407.2,4.15420405]
[1750861960384,7.814,2407.5,2407.4,4.15376264]
[1750861960676,7.814,2407.5,2406.9,0.7847]
[1750861960975,10.0,2407.4,2407.2,4.15403419]
[1750861961181,10.0,2407.4,2406.9,4.15472184]
[1750861961481,10.0,2407.4,2406.6,1.3347]
[1750861961647,13.21076,2407.4,2407.1,4.15424583]
[1750861961846,13.21076,2407.4,2407.2,4.1541761]
[1750861962074,10.0,2407.4,2407.2,4.15420405]
[1750861962379,0.7602,2407.3,2406.6,4.15523975]
[1750861962583,7.81,2407.3,2406.5,5.49731242]
[1750861962777,7.81,2407.3,2407.2,4.15420405]
[1750861962943,7.809,2407.4,2407.2,4.15420405]
[1750861963280,11.5648,2407.6,2407.5,4.15368639]
[1750861963446,19.3728,2407.6,2407.3,4.15393607]
[1750861963651,19.3728,2407.6,2407.1,4.15424158]
[1750861963652,26.11970051,2407.6,2407.1,4.15424158]
[1750861963885,21.96611003,2407.6,2407.2,4.15418354]
[1750861964177,21.96611003,2407.6,2407.3,4.15395608]
[1750861964549,21.96611003,2407.6,2407.2,4.15409656]
[1750861964884,21.96611003,2407.6,2407.3,4.15402774]
[1750861965397,21.96611003,2407.6,2407.2,4.15411435]
[1750861965628,21.96611003,2407.6,2406.8,0.7521]
[1750861965877,21.96611003,2407.6,2406.7,0.55]
[1750861965878,4.9511229,2407.2,2406.7,4.15494373]
[1750861966076,4.9511229,2407.2,2406.5,4.15526724]
[1750861966077,10.21,2407.1,2406.5,4.15526724]
[1750861966276,10.21,2407.1,2406.2,1.26710376]
[1750861966476,5.67080474,2407.0,2406.5,4.15532947]
[1750861966650,4.15473921,2406.9,2406.2,0.7965]
[1750861966849,11.95602682,2406.8,2406.3,4.15566353]
[1750861967259,0.2072,2406.7,2406.4,4.15556215]
[1750861967463,0.2072,2406.7,2406.3,4.36286353]
[1750861967656,5.45457332,2406.7,2406.2,4.15582075]
[1750861967889,5.45457332,2406.7,2405.8,4.93450619]
[1750861967890,0.2072,2406.5,2406.1,4.36323336]
[1750861968051,7.799,2406.4,2406.1,4.36323336]
[1750861968251,7.799,2406.4,2406.3,4.1557578]
[1750861968891,7.799,2406.4,2406.1,4.36324509]
[1750861969089,8.6306,2406.4,2406.1,4.36324509]
[1750861969292,0.8316,2406.4,2406.1,0.2072]
[1750861969454,0.8316,2406.4,2406.2,4.15580622]
[1750861969649,7.797,2406.8,2406.6,4.15523975]
[1750861969854,11.6384,2407.6,2407.0,4.15454923]
[1750861970173,14.0454,2407.6,2407.5,4.15368639]
[1750861970374,21.8404,2407.6,2407.5,4.15368639]
[1750861970557,11.6384,2407.6,2407.5,4.15368639]
[1750861970750,21.008,2407.6,2407.5,4.15368639]
[1750861972150,21.008,2407.6,2406.8,4.95268236]
[1750861972151,23.18683,2407.6,2407.3,4.15390382]
[1750861972395,23.18683,2407.6,2406.8,0.7978]
[1750861972556,23.18683,2407.6,2407.3,4.15395058]
[1750861972954,10.8261,2407.5,2406.5,4.70534577]
[1750861973206,10.8261,2407.5,2406.7,4.1550671]
[1750861973505,3.401293,2407.4,2407.2,4.15409117]
[1750861973804,7.789,2407.3,2407.2,4.15420405]
[1750861974354,10.8261,2407.5,2407.2,4.15420405]
[1750861974585,10.0,2407.4,2407.3,4.15399942]
[1750861974776,0.8261,2407.5,2407.4,4.15385893]
[1750861974965,10.9851,2407.5,2407.4,4.15385893]
[1750861975560,0.8261,2407.5,2407.4,4.15385893]
[1750861975767,10.9831,2407.5,2407.4,4.15385893]
[1750861977789,13.16201,2407.5,2407.1,4.15429001]
[1750861977971,13.16201,2407.5,2407.1,4.15421351]
[1750861978291,13.16201,2407.5,2407.2,4.15411107]
[1750861978467,10.0,2407.4,2407.1,4.15428013]
[1750861978669,10.0,2407.2,2406.8,4.15474622]
[1750861978886,7.779,2407.1,2406.9,4.15465324]
[1750861979074,7.779,2407.1,2406.7,4.1549776]
[1750861979270,10.0,2407.0,2406.6,4.1551134]
[1750861979590,17.777,2407.0,2406.7,4.15501299]
[1750861979766,19.36697804,2407.0,2406.6,4.15517113]
[1750861980394,23.52168956,2407.0,2406.3,0.2072]
[1750861980713,23.52168956,2407.0,2405.8,0.2072]
[1750861980714,10.7758,2406.5,2405.8,0.2072]
[1750861980920,10.7758,2406.5,2405.3,0.8039]
[1750861980921,10.0,2406.3,2406.1,4.15597957]
[1750861981214,7.775,2406.2,2406.1,4.15607495]
[1750861981411,2.42137804,2407.0,2406.2,0.7723]
[1750861981577,7.775,2406.8,2406.3,4.1557578]
[1750861981936,7.775,2406.8,2406.7,4.1550671]
[1750861982074,10.8314,2407.0,2406.8,4.15476647]
[1750861982075,0.8314,2407.0,2406.8,4.15476647]
[1750861982276,10.798,2407.6,2407.1,4.15437663]
[1750861982277,10.0,2407.2,2407.1,4.15437663]
[1750861982479,10.0,2407.2,2406.4,4.15557211]
[1750861982480,10.798,2407.6,2407.3,4.15393099]
[1750861982481,11.6294,2407.6,2407.3,4.15393099]
[1750861982676,10.0,2407.4,2407.2,4.15407281]
[1750861982883,1.16294,2407.5,2407.3,4.15403148]
[1750861983111,11.6294,2407.6,2407.5,4.15368639]
[1750861983311,7.771,2407.6,2407.5,4.15368639]
[1750861983812,7.771,2407.6,2407.3,4.15388202]
[1750861983984,8.7854,2407.6,2407.3,4.15388202]
[1750861984190,8.7854,2407.6,2407.4,4.15368893]
[1750861984510,7.771,2407.6,2407.4,4.15376993]
[1750861985003,7.769,2407.5,2407.4,4.15383054]
[1750861986611,2.373,2407.7,2407.4,4.15383054]
[1750861986804,7.768,2407.6,2407.3,4.15395349]
[1750861987133,7.768,2407.6,2407.0,4.15454923]
[1750861987309,0.7873,2408.3,2406.8,0.7903]
[1750861987508,3.1603,2408.3,2408.0,4.15273051]
[1750861987734,7.763,2408.2,2407.8,4.15307899]
[1750861987922,10.0,2408.1,2407.8,4.15307899]
[1750861988127,10.0,2408.1,2407.9,4.15297207]
[1750861988430,3.1603,2408.3,2407.6,4.15351387]
[1750861988636,7.762,2408.2,2408.1,4.15249925]
[1750861988846,10.0,2408.1,2407.8,4.15308621]
[1750861989208,10.0,2408.1,2408.0,4.15282392]
[1750861990106,10.0,2408.1,2407.4,0.55]
[1750861990315,17.761,2408.2,2407.7,4.15322108]
[1750861990533,11.05730239,2408.1,2407.4,4.70381689]
[1750861990742,10.0,2408.1,2407.9,4.15290058]
[1750861991403,7.757,2408.5,2408.0,4.36002392]
[1750861991632,7.757,2408.5,2408.4,4.15213419]
[1750861991838,7.757,2408.5,2408.2,4.15242357]
[1750861991839,3.364832,2409.0,2408.2,0.55]
[1750861992137,0.2072,2408.6,2408.2,0.2072]
[1750861992308,12.11405068,2408.6,2408.2,0.2072]
[1750861992504,7.9622,2408.6,2408.2,0.2072]
[1750861992731,17.755,2408.6,2408.5,4.1519618]
[1750861992946,0.218632,2409.0,2408.5,0.8275]
[1750861993142,10.0,2408.8,2408.4,0.2072]
[1750861993362,10.0,2408.8,2408.6,4.15169065]
[1750861993565,0.2072,2408.9,2408.7,4.15151237]
[1750861993855,7.752,2408.8,2408.2,0.55]
[1750861994023,7.752,2408.8,2408.5,4.1519618]
[1750861994216,7.752,2408.8,2408.4,0.2072]
[1750861994217,7.752,2408.8,2408.7,4.15161705]
[1750861994629,7.752,2408.8,2408.6,0.2072]
[1750861994831,7.752,2408.8,2408.5,4.15189396]
[1750861995021,7.752,2408.8,2408.6,4.15169551]
[1750861995247,7.752,2408.8,2408.5,4.35905475]
[1750861995856,7.752,2408.8,2408.5,0.2072]
[1750861996056,7.752,2408.8,2408.5,4.35912536]
[1750861996057,7.747,2408.8,2408.5,4.35912536]
[1750861996240,7.747,2408.8,2408.5,4.35912452]
[1750861996554,7.747,2408.8,2408.5,4.35908172]
[1750861996720,7.747,2408.8,2408.5,0.2072]
[1750861997141,7.747,2408.8,2408.5,4.35914548]
[1750861997345,7.747,2408.8,2408.5,4.35914518]
[1750861997532,7.747,2408.8,2408.6,4.15174079]
[1750861997952,7.747,2408.8,2408.6,4.15174881]
[1750861998249,7.743,2408.8,2408.5,0.2072]
[1750861998450,7.743,2408.8,2408.6,4.1517687]
[1750861998755,7.743,2408.8,2408.5,4.35908598]
[1750861998964,7.743,2408.8,2408.5,4.35904214]
[1750861999530,13.90854703,2408.8,2408.5,0.2072]
[1750861999736,4.35912334,2408.6,2408.1,0.2072]
[1750861999932,7.74,2408.5,2408.2,4.15230833]
[1750862000137,7.74,2408.5,2408.1,4.359831]
[1750862000138,7.74,2408.5,2408.1,4.35977146]
[1750862000635,4.15249529,2408.2,2407.7,4.1532583]
[1750862000827,4.15249529,2408.2,2407.2,0.20320409]
[1750862000828,0.2072,2407.9,2407.4,0.2072]
[1750862001027,8.7761,2407.8,2407.5,4.1536345]
[1750862001228,8.7761,2407.8,2407.3,0.2072]
[1750862001759,8.7761,2407.8,2407.7,4.15334136]
[1750862001760,7.738,2407.8,2407.7,4.15334136]
[1750862002321,7.737,2407.8,2407.7,4.15334136]
[1750862002758,2.34,2408.0,2407.7,4.15334136]
[1750862002759,3.1348,2408.4,2407.7,1.6271024]
[1750862002926,7.735,2408.4,2408.0,0.2072]
[1750862003343,1.18312083,2408.8,2408.3,4.15221905]
[1750862003344,7.735,2408.8,2408.3,4.15221905]
[1750862003543,11.88654282,2408.8,2408.1,0.7653]
[1750862003731,0.77920375,2408.7,2408.4,4.15210415]
[1750862003940,7.734,2408.8,2408.5,4.15188202]
[1750862004144,4.36980484,2409.0,2408.7,4.15151553]
[1750862004145,0.218632,2409.0,2408.7,4.15151553]
[1750862004338,0.218632,2409.0,2408.6,4.15172661]
[1750862004541,10.218632,2409.0,2408.6,4.15172661]
[1750862005032,0.218632,2409.0,2408.8,4.15130025]
[1750862005336,10.218632,2409.0,2408.6,4.15167459]
[1750862005539,10.218632,2409.0,2408.2,4.15235421]
[1750862005540,0.7575,2408.8,2408.2,4.15235421]
[1750862005768,13.0975,2408.8,2408.4,4.15203311]
[1750862005961,0.7575,2408.8,2408.1,0.55]
[1750862006156,7.73,2408.8,2408.7,4.15161705]
[1750862006761,10.0,2408.9,2408.5,4.15188227]
[1750862006955,19.0606132,2408.9,2408.5,4.15188227]
[1750862007580,17.729,2408.9,2408.7,4.15147851]
[1750862007886,17.729,2408.9,2408.8,4.1514447]
[1750862008051,0.218632,2409.0,2408.8,4.1514447]
[1750862008367,7.727,2408.9,2408.8,4.1514447]
[1750862008568,0.218632,2409.0,2408.9,4.15127236]
[1750862009162,0.218632,2409.0,2408.6,0.55]
[1750862009372,0.218632,2409.0,2408.9,4.15127236]
[1750862009681,0.218632,2409.0,2408.7,4.15148348]
[1750862010185,0.218632,2409.0,2408.9,4.15127236]
[1750862012293,0.218632,2409.0,2408.8,4.15138312]
[1750862012654,0.218632,2409.0,2408.7,4.15160834]
[1750862012655,0.218632,2409.0,2408.5,0.8244]
[1750862012849,0.218632,2409.0,2406.9,4.47067928]
[1750862012850,4.9603665,2408.8,2408.3,4.15226086]
[1750862013056,10.058,2408.7,2407.9,4.90718666]
[1750862013269,10.2652,2408.7,2408.4,4.15201257]
[1750862013483,10.2652,2408.7,2408.2,0.2072]
[1750862013695,0.2072,2408.4,2407.9,0.2072]
[1750862013895,7.9242,2408.4,2408.0,4.15274149]
[1750862014279,13.28398942,2408.4,2407.9,4.3600926]
[1750862014572,0.755,2408.3,2407.9,4.36011189]
[1750862014969,0.755,2408.3,2408.0,4.15279832]
[1750862015173,0.755,2408.3,2407.9,0.2072]
[1750862015371,0.9622,2408.3,2407.9,4.15298916]
[1750862015989,4.15249053,2408.2,2407.7,4.15321966]
[1750862016188,0.2072,2408.0,2407.5,4.36084357]
[1750862016390,0.2072,2408.0,2407.5,0.2072]
[1750862016391,0.8295,2407.9,2407.5,0.2072]
[1750862016688,0.8295,2407.9,2407.3,0.2072]
[1750862016689,4.36040146,2407.8,2407.3,0.2072]
[1750862016890,7.712,2407.7,2407.3,4.36120933]
[1750862017055,11.86541576,2407.7,2407.2,4.15419714]
[1750862017254,0.2072,2407.5,2407.2,4.15419714]
[1750862017456,0.2072,2407.5,2407.2,4.15415558]
[1750862017658,0.2072,2407.5,2407.2,4.15407033]
[1750862018492,0.8295,2407.9,2407.8,4.15316886]
[1750862018660,0.2072,2408.0,2407.6,0.2072]
[1750862018860,0.2072,2408.0,2407.7,4.15322918]
[1750862019158,0.2072,2408.0,2407.8,4.15304605]
[1750862019589,0.2072,2408.0,2407.9,4.15299638]
[1750862019791,17.71,2408.1,2408.0,4.15282392]
[1750862019982,13.9242,2408.3,2408.0,4.15282392]
[1750862019983,0.2072,2408.2,2408.1,4.15265146]
[1750862020483,2.34,2408.3,2408.2,4.15247902]
[1750862021089,4.15152568,2408.8,2408.2,4.15247902]
[1750862021090,0.218632,2409.0,2408.2,1.3284]
[1750862021263,0.218632,2409.0,2408.6,0.2072]
[1750862021463,0.218632,2409.0,2408.2,1.3284]
[1750862021464,3.1882252,2409.0,2408.4,4.35928179]
[1750862021679,0.2072,2408.8,2408.5,4.15183606]
[1750862022276,0.2072,2408.8,2408.4,4.35927022]
[1750862022483,7.706,2408.7,2408.4,4.35927022]
[1750862022796,0.2072,2408.6,2408.3,4.15220451]
[1750862022997,1.28555912,2408.6,2408.2,4.35964511]
[1750862023498,1.28555912,2408.6,2408.3,4.15228916]
[1750862025075,0.2072,2407.9,2407.4,4.36093997]
[1750862025786,0.2072,2407.9,2407.5,4.15360252]
[1750862026103,0.2072,2407.9,2407.6,4.15337932]
[1750862026265,12.34,2408.5,2407.6,4.15337932]
[1750862026266,0.218632,2409.0,2407.8,10.40608671]
[1750862026463,0.218632,2409.0,2408.9,4.15127236]
[1750862027066,0.218632,2409.0,2408.8,4.15133866]
[1750862027266,0.218632,2409.0,2408.9,4.15127236]
[1750862028075,0.792,2408.9,2408.3,0.7865]
[1750862028298,0.8708632,2408.8,2408.4,4.15203856]
[1750862028503,8.5668632,2408.8,2408.5,4.15195502]
[1750862028925,3.132,2408.9,2408.3,4.1523066]
[1750862028926,0.792,2408.9,2408.3,4.1523066]
[1750862029201,8.488,2408.9,2408.7,4.15152123]
[1750862029801,7.696,2408.9,2408.8,4.1514447]
[1750862029995,7.912632,2409.0,2408.8,4.15132312]
[1750862030304,7.912632,2409.0,2408.8,4.15129704]
[1750862030939,7.912632,2409.0,2408.8,4.15133876]
[1750862031325,8.35885065,2409.0,2408.6,4.15169842]
[1750862031836,8.35885065,2409.0,2408.2,0.7895]
[1750862032040,8.35885065,2409.0,2408.5,4.15179125]
[1750862032240,8.35885065,2409.0,2408.6,4.15174628]
[1750862032443,8.35885065,2409.0,2408.3,0.55]
[1750862032642,7.69,2408.9,2408.7,4.15151015]
[1750862032946,7.69,2408.9,2408.8,4.15136078]
[1750862033337,7.69,2408.9,2408.7,4.1515266]
[1750862033525,7.69,2408.9,2408.4,0.55]
[1750862033721,7.69,2408.9,2408.8,4.1514447]
[1750862034024,7.69,2408.9,2408.7,4.15153746]
[1750862034221,7.69,2408.9,2408.8,4.1514447]
[1750862034421,0.218632,2409.0,2408.9,4.15127236]
[1750862035016,0.218632,2409.0,2408.9,4.70127236]
[1750862035854,0.218632,2409.0,2408.9,4.15127236]
[1750862036421,0.218632,2409.0,2408.9,4.35847236]
[1750862037224,0.218632,2409.0,2408.9,4.90847236]
[1750862037459,0.218632,2409.0,2408.9,5.89002407]
[1750862037818,0.218632,2409.0,2408.9,5.34002407]
[1750862038265,0.218632,2409.0,2408.9,4.35847236]
[1750862038556,0.218632,2409.0,2408.9,4.15127236]
[1750862039553,0.218632,2409.0,2408.8,0.2072]
[1750862039726,0.218632,2409.0,2408.9,4.15127236]
[1750862040419,0.218632,2409.0,2408.7,0.2072]
[1750862040658,0.218632,2409.0,2408.6,4.15171368]
[1750862040969,0.2072,2408.9,2408.6,4.15171368]
[1750862041355,0.2072,2408.9,2408.4,0.2072]
[1750862041356,4.1515087,2408.8,2408.4,0.2072]
[1750862041556,0.2072,2408.5,2408.3,4.15215756]
[1750862041858,0.2072,2408.5,2408.3,4.15222379]
[1750862042230,0.2072,2408.5,2408.2,4.15241001]
[1750862042640,0.2072,2408.5,2408.4,4.15213419]
[1750862043042,7.678,2408.6,2408.5,4.1519618]
[1750862043460,7.678,2408.6,2408.4,4.15203813]
[1750862043761,7.678,2408.6,2408.5,4.1519618]
[1750862044263,7.678,2408.6,2407.9,0.2072]
[1750862044264,4.15242616,2408.3,2407.9,0.2072]
[1750862044429,0.2072,2408.3,2407.9,4.15289727]
[1750862044630,0.2072,2408.3,2408.0,4.15269255]
[1750862044965,0.2072,2408.3,2408.1,4.15253602]
[1750862045262,0.2072,2408.3,2408.2,4.15247902]
[1750862045559,0.2072,2408.3,2408.1,4.15256606]
[1750862045729,0.2072,2408.3,2407.8,0.55]
[1750862045931,7.8822,2408.5,2408.0,0.7658]
[1750862046129,7.8822,2408.5,2408.3,4.15223711]
[1750862046862,7.673,2408.9,2408.7,4.15153571]
[1750862047065,0.425832,2409.0,2408.9,4.15127236]
[1750862047249,0.425832,2409.0,2408.7,4.15146821]
[1750862047563,0.425832,2409.0,2408.8,4.15144296]
[1750862047937,0.425832,2409.0,2408.9,4.15127236]
[1750862048145,0.425832,2409.0,2408.7,4.15153644]
[1750862048340,0.425832,2409.0,2408.9,4.15127236]
[1750862048575,0.218632,2409.0,2408.9,4.15127236]
[1750862048742,0.218632,2409.0,2408.9,4.70127236]
[1750862048944,0.218632,2409.0,2408.9,5.50447236]
[1750862049145,0.218632,2409.0,2408.9,5.71167236]
[1750862049374,0.218632,2409.0,2408.9,6.56286759]
[1750862050868,0.218632,2409.0,2408.9,16.56286759]
[1750862051248,0.218632,2409.0,2408.9,24.22986759]
[1750862051448,0.218632,2409.0,2408.9,6.56286759]
[1750862052747,0.218632,2409.0,2408.9,4.35847236]
[1750862053754,0.218632,2409.0,2408.9,4.90847236]
[1750862055051,0.8155,2410.4,2409.2,4.70072225]
[1750862055256,4.14901499,2410.3,2409.7,4.14979715]
[1750862055457,10.8155,2410.4,2409.9,4.14954977]
[1750862055652,0.8155,2410.4,2409.7,0.41497972]
[1750862055853,0.8155,2410.4,2410.3,4.14886113]
[1750862056053,2.311,2410.6,2410.4,4.14864043]
[1750862056356,0.8197,2410.7,2410.0,4.14935829]
[1750862056357,3.1307,2410.7,2410.0,0.55]
[1750862056570,3.1307,2410.7,2410.6,4.14834481]
[1750862057173,3.1307,2410.7,2410.1,0.7761]
[1750862057377,3.1307,2410.7,2410.2,0.55]
[1750862057573,3.1307,2410.7,2410.5,4.14837782]
[1750862057886,3.1307,2410.7,2410.4,4.14867413]
[1750862057887,3.1307,2410.7,2410.4,4.14857841]
[1750862058084,3.1307,2410.7,2410.3,4.14877016]
[1750862058286,4.62448025,2410.7,2410.4,4.14867719]
[1750862058475,4.62448025,2410.7,2410.3,4.14877499]
[1750862058673,10.0,2410.8,2410.4,4.14860169]
[1750862058991,10.0,2410.8,2410.6,4.14825141]
[1750862058992,12.311,2410.8,2410.6,4.14825141]
[1750862059186,12.311,2410.8,2410.1,0.55]
[1750862059389,12.311,2410.8,2410.1,4.69917335]
[1750862059559,10.0,2410.8,2410.6,4.148321]
[1750862059886,10.0,2410.8,2410.5,4.14836895]
[1750862060062,10.0,2410.8,2410.2,0.55]
[1750862060063,11.5542,2411.1,2410.2,0.55]
[1750862060269,10.0,2411.0,2410.8,4.14792212]
[1750862060451,10.0,2411.0,2410.3,4.14886113]
[1750862060784,10.0,2411.0,2410.8,4.14788329]
[1750862061194,10.0,2411.0,2410.7,4.14816202]
[1750862061487,4.14784735,2410.9,2410.4,4.14860294]
[1750862061685,3.8231705,2410.9,2410.4,4.14860294]
[1750862061854,3.8231705,2410.9,2410.5,4.14848758]
[1750862062254,3.8231705,2410.9,2410.2,0.55]
[1750862062255,3.8231705,2410.9,2410.6,4.14831882]
[1750862062490,3.8231705,2410.9,2410.5,4.14843671]
[1750862062677,3.8231705,2410.9,2410.6,4.14831766]
[1750862063484,3.8231705,2410.9,2410.5,4.1484247]
[1750862063983,11.5542,2411.1,2410.8,4.14786588]
[1750862064188,7.649,2411.0,2410.5,0.55]
[1750862064356,20.723,2411.1,2410.8,4.14784087]
[1750862064763,0.218632,2411.4,2411.0,0.55]
[1750862064987,0.218632,2411.4,2411.3,5.14104054]
[1750862065189,0.218632,2411.4,2411.3,5.69104054]
[1750862065399,0.218632,2411.4,2411.3,5.48384054]
[1750862065586,0.218632,2411.4,2411.3,16.44695369]
[1750862066669,0.218632,2411.4,2411.3,5.11025369]
[1750862066872,0.218632,2411.4,2411.3,4.69714054]
[1750862067267,0.218632,2411.4,2411.3,15.48004054]
[1750862067661,2.286,2412.5,2411.6,0.55]
[1750862067861,6.43112143,2412.5,2411.6,0.55]
[1750862068086,10.782,2413.2,2411.6,4.14662206]
[1750862068087,0.7577,2412.2,2411.6,4.14662206]
[1750862068281,2.286,2412.1,2411.7,4.14641913]
[1750862068499,2.286,2412.1,2411.6,5.05797335]
[1750862068693,2.286,2412.1,2411.3,0.55]
[1750862069011,0.77,2411.7,2410.8,10.8171]
[1750862069187,0.77,2411.7,2411.2,4.14714237]
[1750862069377,0.77,2411.7,2411.2,4.56185661]
[1750862069580,4.14672435,2411.6,2410.9,4.14773783]
[1750862069803,4.14688895,2411.5,2410.3,7.639]
[1750862070011,4.14688895,2411.5,2410.8,4.14789131]
[1750862070012,4.1470617,2411.4,2410.8,4.14789131]
[1750862070311,4.14724564,2411.3,2410.7,4.14806304]
[1750862070498,4.14767871,2411.0,2410.1,0.8229]
[1750862070668,2.286,2410.9,2410.2,1.26111848]
[1750862071000,12.286,2410.9,2410.4,4.14857129]
[1750862071498,12.286,2410.9,2410.3,4.148788]
[1750862071697,16.43390985,2410.9,2410.3,4.148788]
[1750862072068,16.43390985,2410.9,2410.4,4.1486612]
[1750862072269,16.43390985,2410.9,2410.1,0.8229]
[1750862072270,16.43390985,2410.9,2410.3,4.14877081]
[1750862072502,12.286,2410.9,2410.4,4.14867735]
[1750862072877,12.286,2410.9,2410.3,0.91208263]
[1750862073080,0.7885,2411.2,2410.1,0.8229]
[1750862073301,14.06859746,2411.1,2410.5,4.14839058]
[1750862073490,14.06859746,2411.1,2410.6,4.14829781]
[1750862073695,4.14759746,2411.1,2410.5,4.14843909]
[1750862074083,4.14783214,2410.9,2410.3,4.14875347]
[1750862074422,2.286,2410.8,2410.7,4.14817272]
[1750862074776,0.7885,2411.2,2410.7,4.14817272]
[1750862074973,9.92,2411.1,2410.7,4.14817272]
[1750862075212,9.92,2411.1,2410.6,4.14832052]
[1750862075213,9.919,2411.0,2410.6,4.14827803]
[1750862075504,0.2072,2411.0,2410.7,4.1481453]
[1750862075682,2.286,2410.9,2410.6,4.35545653]
[1750862076079,2.286,2410.9,2410.6,0.2072]
[1750862076310,0.2072,2411.0,2410.6,4.35545591]
[1750862076623,2.286,2410.9,2410.6,4.35545591]
[1750862076910,2.286,2410.8,2410.6,0.2072]
[1750862077307,2.286,2410.8,2410.6,4.35553043]
[1750862077512,7.8382,2411.0,2410.7,4.14812348]
[1750862077678,0.2072,2411.0,2410.7,0.81568436]
[1750862077878,2.286,2410.9,2410.8,4.14800066]
[1750862078073,2.286,2410.9,2410.8,4.35520066]
[1750862078318,2.286,2410.9,2410.8,0.2072]
[1750862078814,2.4932,2410.9,2410.5,4.35569251]
[1750862079220,6.6410425,2410.9,2410.5,0.2072]
[1750862079518,2.4932,2410.9,2410.5,4.35562944]
[1750862079723,2.4932,2410.9,2410.5,4.35563626]
[1750862080087,6.64115665,2410.9,2410.5,0.2072]
[1750862080886,2.4932,2410.9,2410.5,4.35570029]
[1750862081304,0.2072,2410.9,2410.6,4.14833386]
[1750862081507,2.286,2410.8,2410.5,0.2072]
[1750862081720,2.286,2410.8,2410.5,4.35561338]
[1750862082217,2.286,2410.8,2410.5,0.2072]
[1750862082427,2.286,2410.8,2410.5,4.35571366]
[1750862082750,2.286,2410.7,2410.6,4.14834481]
[1750862083239,2.286,2410.8,2410.6,4.14834481]
[1750862083721,10.6626,2410.7,2410.5,0.2072]
[1750862083882,4.14954977,2409.9,2409.8,0.2072]
[1750862084089,10.6626,2409.9,2409.6,0.2072]
[1750862084311,0.2072,2409.8,2409.4,4.35758216]
[1750862084526,9.909,2409.7,2409.6,4.14996518]
[1750862084729,9.909,2409.7,2409.5,0.2072]
[1750862085090,9.909,2409.7,2409.5,4.35741968]
[1750862085393,0.7526,2409.9,2409.7,4.14987536]
[1750862085628,8.3746,2409.9,2409.8,4.14972196]
[1750862085920,10.6616,2409.9,2409.8,4.14972196]
[1750862086722,0.7526,2409.9,2409.8,4.14972196]
[1750862086936,0.2072,2410.1,2409.8,4.14972196]
[1750862087118,9.908,2410.0,2409.8,4.14964037]
[1750862087323,10.1152,2410.0,2409.8,4.14963242]
[1750862087693,10.1152,2410.0,2409.9,4.14954977]
[1750862087895,10.1152,2410.0,2409.6,4.15002198]
[1750862088100,10.1152,2410.0,2409.8,4.14961061]
[1750862088401,10.1152,2410.0,2409.8,4.14968688]
[1750862088939,10.1152,2410.0,2409.6,4.1500664]
[1750862089099,0.2072,2410.0,2409.9,4.14954977]
[1750862089298,2.4942,2410.0,2409.9,4.14954977]
[1750862089930,2.4942,2410.0,2409.5,0.2072]
[1750862090244,2.4942,2410.0,2409.1,0.2072]
[1750862090245,0.2072,2409.5,2409.1,0.2072]
[1750862090409,7.8242,2409.5,2409.4,4.15041089]
[1750862090604,10.1112,2409.5,2409.4,4.15041089]
[1750862091000,0.7547,2409.8,2409.6,4.14997743]
[1750862091204,9.904,2409.7,2409.6,4.1500664]
[1750862091402,0.7547,2409.8,2409.7,4.14989417]
[1750862091609,0.7764,2410.4,2409.7,4.14989417]
[1750862091809,0.2072,2410.2,2409.7,0.2072]